[Event "*** SCC Grand Prix: Titled Tuesday Blitz"]
[Site "Chess.com"]
[Date "2020.08.11"]
[Round "8"]
[White "Alopekos"]
[Black "TheMightyBishops"]
[Result "1-0"]
[WhiteElo "2273"]
[BlackElo "1998"]
[TimeControl "180+1"]
[EndTime "11:33:19 PDT"]
[Termination "Alopekos won by resignation"]

1. d4 {[%clk 0:03:00.9]} 1... d6 {[%clk 0:02:41]} 2. Nf3 {[%clk 0:02:52.2]} 2...
Nd7 {[%clk 0:02:38.9]} 3. c4 {[%clk 0:02:49.6]} 3... e6 {[%clk 0:02:36.3]} 4.
Nc3 {[%clk 0:02:46.7]} 4... e5 {[%clk 0:02:34.6]} 5. g3 {[%clk 0:02:42.6]} 5...
Ngf6 {[%clk 0:02:34]} 6. e4 {[%clk 0:02:39.1]} 6... c6 {[%clk 0:02:33.3]} 7. Bg2
{[%clk 0:02:38.3]} 7... Qc7 {[%clk 0:02:32.7]} 8. O-O {[%clk 0:02:36.8]} 8... h6
{[%clk 0:02:31.7]} 9. h3 {[%clk 0:02:33.7]} 9... g5 {[%clk 0:02:30.9]} 10. dxe5
{[%clk 0:02:32.9]} 10... dxe5 {[%clk 0:02:29.3]} 11. Be3 {[%clk 0:02:26.3]}
11... Be7 {[%clk 0:02:23.2]} 12. Qd2 {[%clk 0:02:19.3]} 12... Nf8 {[%clk
0:02:18.7]} 13. Rac1 {[%clk 0:02:14.5]} 13... Ng6 {[%clk 0:02:17.2]} 14. b4
{[%clk 0:02:07.1]} 14... Rg8 {[%clk 0:02:14.7]} 15. b5 {[%clk 0:02:06.4]} 15...
Nf4 {[%clk 0:02:14.1]} 16. gxf4 {[%clk 0:01:24.1]} 16... gxf4 {[%clk 0:02:13.8]}
17. Bxf4 {[%clk 0:01:24.4]} 17... exf4 {[%clk 0:02:13.3]} 18. Kh2 {[%clk
0:01:24]} 18... h5 {[%clk 0:02:12.2]} 19. e5 {[%clk 0:01:04.4]} 19... Ng4+
{[%clk 0:02:11.6]} 20. Kh1 {[%clk 0:01:01.6]} 20... Nxe5 {[%clk 0:01:52.9]} 21.
Qxf4 {[%clk 0:00:59.7]} 21... Bd6 {[%clk 0:01:52.8]} 22. Ne4 {[%clk 0:00:56.1]}
22... Rg6 {[%clk 0:01:42.8]} 23. Nxd6+ {[%clk 0:00:48.6]} 23... Qxd6 {[%clk
0:01:41.8]} 24. Nxe5 {[%clk 0:00:48.6]} 24... Rf6 {[%clk 0:01:33.1]} 25. Qg3
{[%clk 0:00:44.1]} 25... h4 {[%clk 0:01:30.9]} 26. Qg8+ {[%clk 0:00:41.1]} 26...
Ke7 {[%clk 0:01:28.8]} 27. Rfe1 {[%clk 0:00:40.7]} 27... Be6 {[%clk 0:01:28]}
28. Qxa8 {[%clk 0:00:30.6]} 28... Rf5 {[%clk 0:01:27.4]} 29. Qxb7+ {[%clk
0:00:30.1]} 29... Kf6 {[%clk 0:01:27.4]} 30. Ng4+ {[%clk 0:00:29.2]} 30... Kg6
{[%clk 0:01:26.5]} 31. Qxc6 {[%clk 0:00:27.3]} 31... Qf4 {[%clk 0:01:24]} 32.
Rxe6+ {[%clk 0:00:23.5]} 32... f6 {[%clk 0:01:24]} 33. Rxf6+ {[%clk 0:00:19.7]}
33... Rxf6 {[%clk 0:01:24]} 34. Qxf6+ {[%clk 0:00:20.6]} 34... Qxf6 {[%clk
0:01:23.9]} 35. Nxf6 {[%clk 0:00:21.5]} 35... Kxf6 {[%clk 0:01:24.2]} 36. Rd1
{[%clk 0:00:20.9]} 36... Ke5 {[%clk 0:01:23.9]} 37. c5 {[%clk 0:00:21.8]} 37...
a6 {[%clk 0:01:21.4]} 38. c6 {[%clk 0:00:22.7]} 38... axb5 {[%clk 0:01:21.6]}
39. c7 {[%clk 0:00:23.6]} 39... b4 {[%clk 0:01:21.8]} 40. c8=Q {[%clk
0:00:24.5]} 40... b3 {[%clk 0:01:22.1]} 41. Qb8+ {[%clk 0:00:24.8]} 41... Kf5
{[%clk 0:01:19.7]} 42. Qxb3 {[%clk 0:00:25.7]} 1-0

[Event "*** SCC Grand Prix: Titled Tuesday Blitz"]
[Site "Chess.com"]
[Date "2020.08.11"]
[Round "8"]
[White "Vsevolod_Ovchinnikov"]
[Black "KingChess345"]
[Result "1-0"]
[WhiteElo "2446"]
[BlackElo "2200"]
[TimeControl "180+1"]
[EndTime "11:33:21 PDT"]
[Termination "Vsevolod_Ovchinnikov won on time"]

1. d4 {[%clk 0:03:00.9]} 1... Nf6 {[%clk 0:02:59.3]} 2. c4 {[%clk 0:03:01.3]}
2... e6 {[%clk 0:02:59.5]} 3. g3 {[%clk 0:03:01.4]} 3... Bb4+ {[%clk 0:02:59.8]}
4. Bd2 {[%clk 0:03:01.4]} 4... Qe7 {[%clk 0:03:00.3]} 5. Bg2 {[%clk 0:03:01.6]}
5... Bxd2+ {[%clk 0:03:00.7]} 6. Qxd2 {[%clk 0:03:00.8]} 6... d5 {[%clk
0:03:01]} 7. Nf3 {[%clk 0:02:58.7]} 7... dxc4 {[%clk 0:02:55.9]} 8. O-O {[%clk
0:02:57.4]} 8... O-O {[%clk 0:02:53.1]} 9. Na3 {[%clk 0:02:54.5]} 9... Rd8
{[%clk 0:02:52.3]} 10. Qc3 {[%clk 0:02:43.5]} 10... b6 {[%clk 0:01:49.8]} 11.
Ne5 {[%clk 0:02:38]} 11... Nd5 {[%clk 0:01:48.2]} 12. Qxc4 {[%clk 0:02:37.8]}
12... Bb7 {[%clk 0:01:31.7]} 13. Rfd1 {[%clk 0:02:32]} 13... Na6 {[%clk
0:01:28.8]} 14. Nc6 {[%clk 0:02:11.9]} 14... Bxc6 {[%clk 0:01:24.8]} 15. Qxc6
{[%clk 0:02:12.8]} 15... Nab4 {[%clk 0:01:21.9]} 16. Qc1 {[%clk 0:02:12.7]}
16... Rac8 {[%clk 0:01:17.3]} 17. Nc4 {[%clk 0:01:19.3]} 17... c5 {[%clk
0:01:06.9]} 18. a3 {[%clk 0:01:18.6]} 18... Na6 {[%clk 0:01:06.7]} 19. e4 {[%clk
0:00:58.7]} 19... cxd4 {[%clk 0:00:30.7]} 20. exd5 {[%clk 0:00:58.5]} 20... b5
{[%clk 0:00:20.3]} 21. Rxd4 {[%clk 0:00:53.1]} 21... exd5 {[%clk 0:00:15.5]} 22.
Qe3 {[%clk 0:00:48.2]} 22... Qf6 {[%clk 0:00:06.7]} 23. Nd2 {[%clk 0:00:45.3]}
23... Re8 {[%clk 0:00:03.6]} 24. Qf4 {[%clk 0:00:45]} 24... Qxf4 {[%clk
0:00:02]} 25. gxf4 {[%clk 0:00:45.9]} 25... Re2 {[%clk 0:00:01.9]} 26. Bf3
{[%clk 0:00:44.8]} 1-0

[Event "*** SCC Grand Prix: Titled Tuesday Blitz"]
[Site "Chess.com"]
[Date "2020.08.11"]
[Round "8"]
[White "londonkid"]
[Black "Terao90"]
[Result "0-1"]
[WhiteElo "2443"]
[BlackElo "2346"]
[TimeControl "180+1"]
[EndTime "11:33:23 PDT"]
[Termination "Terao90 won by checkmate"]

1. d4 {[%clk 0:03:00.9]} 1... Nf6 {[%clk 0:02:56.8]} 2. c4 {[%clk 0:03:01.2]}
2... e6 {[%clk 0:02:54.8]} 3. Nf3 {[%clk 0:03:00.4]} 3... Bb4+ {[%clk
0:02:54.2]} 4. Nbd2 {[%clk 0:02:59.7]} 4... O-O {[%clk 0:02:53.3]} 5. g3 {[%clk
0:02:59.7]} 5... b6 {[%clk 0:02:50.9]} 6. Bg2 {[%clk 0:02:59.8]} 6... Bb7 {[%clk
0:02:51.1]} 7. O-O {[%clk 0:03:00]} 7... a5 {[%clk 0:02:48.7]} 8. a3 {[%clk
0:02:57.8]} 8... Be7 {[%clk 0:02:46]} 9. b3 {[%clk 0:02:53.3]} 9... d5 {[%clk
0:02:33.3]} 10. Ne5 {[%clk 0:02:53.2]} 10... Nbd7 {[%clk 0:02:29.6]} 11. Nxd7
{[%clk 0:02:50]} 11... Qxd7 {[%clk 0:02:22.9]} 12. Bb2 {[%clk 0:02:50.6]} 12...
Rfd8 {[%clk 0:02:19.3]} 13. Qc2 {[%clk 0:02:49.1]} 13... Rac8 {[%clk 0:01:58.1]}
14. c5 {[%clk 0:02:41.8]} 14... Qb5 {[%clk 0:01:53.3]} 15. Nf3 {[%clk
0:02:12.6]} 15... bxc5 {[%clk 0:01:51]} 16. dxc5 {[%clk 0:02:12.4]} 16... Qxc5
{[%clk 0:01:50.8]} 17. Qd2 {[%clk 0:02:09.6]} 17... Ne4 {[%clk 0:01:45.4]} 18.
Qf4 {[%clk 0:02:05.4]} 18... Qb6 {[%clk 0:01:26.7]} 19. Rab1 {[%clk 0:01:49.3]}
19... c5 {[%clk 0:01:22.2]} 20. Ne5 {[%clk 0:01:46.3]} 20... Bf6 {[%clk
0:01:21.1]} 21. Bxe4 {[%clk 0:01:39.7]} 21... dxe4 {[%clk 0:01:20.3]} 22. Nc4
{[%clk 0:01:40]} 22... Qc7 {[%clk 0:01:00.3]} 23. Qxc7 {[%clk 0:01:39.6]} 23...
Rxc7 {[%clk 0:01:01.2]} 24. Bxf6 {[%clk 0:01:40]} 24... gxf6 {[%clk 0:01:01.5]}
25. Nxa5 {[%clk 0:01:40.7]} 25... Bd5 {[%clk 0:01:01.6]} 26. Nc4 {[%clk
0:01:39.3]} 26... Bxc4 {[%clk 0:00:59.5]} 27. bxc4 {[%clk 0:01:39.5]} 27... Rd2
{[%clk 0:00:59.4]} 28. Rfe1 {[%clk 0:01:31.7]} 28... Ra7 {[%clk 0:00:47.4]} 29.
Rb5 {[%clk 0:01:31.4]} 29... Rxa3 {[%clk 0:00:44.2]} 30. Rxc5 {[%clk 0:01:31.7]}
30... Rc3 {[%clk 0:00:43.6]} 31. Rc8+ {[%clk 0:01:30.3]} 31... Kg7 {[%clk
0:00:43.4]} 32. Rb1 {[%clk 0:01:11.2]} 32... Rxe2 {[%clk 0:00:34.3]} 33. Rb7
{[%clk 0:01:10.7]} 33... e3 {[%clk 0:00:32.4]} 34. Rcc7 {[%clk 0:01:00.1]} 34...
exf2+ {[%clk 0:00:22.5]} 35. Kf1 {[%clk 0:00:59.5]} 35... Rc1+ {[%clk
0:00:21.5]} 36. Kxe2 {[%clk 0:00:57.5]} 36... f1=Q+ {[%clk 0:00:21.9]} 37. Kd2
{[%clk 0:00:58.2]} 37... Qe1+ {[%clk 0:00:18.5]} 38. Kd3 {[%clk 0:00:58.5]}
38... Rc3+ {[%clk 0:00:16]} 39. Kd4 {[%clk 0:00:59.1]} 39... Qe3# {[%clk
0:00:16.2]} 0-1

[Event "*** SCC Grand Prix: Titled Tuesday Blitz"]
[Site "Chess.com"]
[Date "2020.08.11"]
[Round "8"]
[White "kasparicy"]
[Black "parintele_chess"]
[Result "1-0"]
[WhiteElo "2346"]
[BlackElo "2114"]
[TimeControl "180+1"]
[EndTime "11:33:24 PDT"]
[Termination "kasparicy won by checkmate"]

1. e4 {[%clk 0:03:00.9]} 1... e6 {[%clk 0:02:54.9]} 2. d4 {[%clk 0:03:00.5]}
2... d5 {[%clk 0:02:54.8]} 3. Nd2 {[%clk 0:03:00.8]} 3... dxe4 {[%clk
0:02:54.3]} 4. Nxe4 {[%clk 0:03:01.7]} 4... Nf6 {[%clk 0:02:54.2]} 5. Nxf6+
{[%clk 0:03:01.5]} 5... Qxf6 {[%clk 0:02:53.6]} 6. Nf3 {[%clk 0:03:02]} 6... Nd7
{[%clk 0:02:51.5]} 7. Bg5 {[%clk 0:02:59.5]} 7... Qf5 {[%clk 0:02:45.9]} 8. Bd3
{[%clk 0:02:58.2]} 8... Qa5+ {[%clk 0:02:45.6]} 9. Bd2 {[%clk 0:02:56.6]} 9...
Qb6 {[%clk 0:02:45]} 10. O-O {[%clk 0:02:53.3]} 10... Be7 {[%clk 0:02:38.5]} 11.
Re1 {[%clk 0:02:08.4]} 11... Nf6 {[%clk 0:02:24.6]} 12. Qe2 {[%clk 0:01:18.3]}
12... Qxb2 {[%clk 0:02:08.8]} 13. Rab1 {[%clk 0:01:09.2]} 13... Qa3 {[%clk
0:01:35.2]} 14. Ne5 {[%clk 0:01:07.3]} 14... Qd6 {[%clk 0:01:17.9]} 15. Bb4
{[%clk 0:00:47]} 15... Qd8 {[%clk 0:01:14.9]} 16. Bb5+ {[%clk 0:00:26.2]} 16...
Bd7 {[%clk 0:00:39.7]} 17. Bxd7+ {[%clk 0:00:16]} 17... Nxd7 {[%clk 0:00:36.8]}
18. Nxf7 {[%clk 0:00:16.1]} 18... Kxf7 {[%clk 0:00:37.1]} 19. Qxe6+ {[%clk
0:00:15.6]} 19... Ke8 {[%clk 0:00:30.7]} 20. Bxe7 {[%clk 0:00:15.7]} 20... Qc8
{[%clk 0:00:30]} 21. Bd6+ {[%clk 0:00:15]} 21... Kd8 {[%clk 0:00:29.1]} 22. Qe7#
{[%clk 0:00:15.9]} 1-0

[Event "*** SCC Grand Prix: Titled Tuesday Blitz"]
[Site "Chess.com"]
[Date "2020.08.11"]
[Round "8"]
[White "Khvicha_Supatashvili"]
[Black "Ranindu2003"]
[Result "1-0"]
[WhiteElo "2717"]
[BlackElo "2603"]
[TimeControl "180+1"]
[EndTime "11:33:25 PDT"]
[Termination "Khvicha_Supatashvili won by resignation"]

1. d4 {[%clk 0:03:00.9]} 1... Nf6 {[%clk 0:02:57.9]} 2. Nf3 {[%clk 0:03:00]}
2... e6 {[%clk 0:02:57.8]} 3. c4 {[%clk 0:02:59.4]} 3... d5 {[%clk 0:02:57.7]}
4. Nc3 {[%clk 0:02:59.3]} 4... a6 {[%clk 0:02:57.5]} 5. cxd5 {[%clk 0:02:58.4]}
5... exd5 {[%clk 0:02:58.4]} 6. Bg5 {[%clk 0:02:57.9]} 6... Be6 {[%clk 0:02:58]}
7. e3 {[%clk 0:02:57.2]} 7... Nbd7 {[%clk 0:02:57.7]} 8. Bd3 {[%clk 0:02:54.8]}
8... Bd6 {[%clk 0:02:57.6]} 9. Bf4 {[%clk 0:02:47.1]} 9... Qe7 {[%clk
0:02:51.1]} 10. O-O {[%clk 0:02:44.1]} 10... O-O {[%clk 0:02:50]} 11. Qc2 {[%clk
0:02:43.3]} 11... g6 {[%clk 0:02:41.1]} 12. Bg5 {[%clk 0:02:34.3]} 12... c5
{[%clk 0:02:10.7]} 13. e4 {[%clk 0:02:04.3]} 13... cxd4 {[%clk 0:02:09.2]} 14.
Nxd4 {[%clk 0:01:55.2]} 14... Be5 {[%clk 0:02:06.1]} 15. Nxe6 {[%clk 0:01:49.4]}
15... Qxe6 {[%clk 0:01:52.1]} 16. Rfe1 {[%clk 0:01:40.3]} 16... Rac8 {[%clk
0:01:33.1]} 17. exd5 {[%clk 0:00:54.3]} 17... Nxd5 {[%clk 0:01:31.2]} 18. Rad1
{[%clk 0:00:43.1]} 18... Qg4 {[%clk 0:01:13.5]} 19. Bd2 {[%clk 0:00:31.7]} 19...
Qh5 {[%clk 0:01:02.7]} 20. g3 {[%clk 0:00:29.6]} 20... Nb4 {[%clk 0:00:57.5]}
21. Qb1 {[%clk 0:00:29.4]} 21... Nxd3 {[%clk 0:00:55.3]} 22. Qxd3 {[%clk
0:00:29.5]} 22... Nc5 {[%clk 0:00:55.9]} 23. Qe2 {[%clk 0:00:29]} 23... Rfe8
{[%clk 0:00:55.6]} 24. Qxh5 {[%clk 0:00:28.3]} 24... gxh5 {[%clk 0:00:56.2]} 25.
Nd5 {[%clk 0:00:25.7]} 25... Nd3 {[%clk 0:00:53.7]} 26. Re4 {[%clk 0:00:14.1]}
26... Bf6 {[%clk 0:00:41.3]} 27. Nxf6+ {[%clk 0:00:13]} 1-0

[Event "*** SCC Grand Prix: Titled Tuesday Blitz"]
[Site "Chess.com"]
[Date "2020.08.11"]
[Round "8"]
[White "GMBenjaminBok"]
[Black "Azeryahu"]
[Result "1-0"]
[WhiteElo "2916"]
[BlackElo "2785"]
[TimeControl "180+1"]
[EndTime "11:33:26 PDT"]
[Termination "GMBenjaminBok won on time"]

1. d4 {[%clk 0:03:00.9]} 1... g6 {[%clk 0:03:00.3]} 2. c4 {[%clk 0:02:59.8]}
2... Bg7 {[%clk 0:03:00.9]} 3. Nf3 {[%clk 0:03:00.3]} 3... d6 {[%clk 0:03:00.7]}
4. g3 {[%clk 0:03:00.5]} 4... Nc6 {[%clk 0:02:57]} 5. Bg2 {[%clk 0:03:00.4]}
5... e5 {[%clk 0:02:57.6]} 6. dxe5 {[%clk 0:02:53.4]} 6... Nxe5 {[%clk
0:02:55.4]} 7. O-O {[%clk 0:02:49.5]} 7... Nxf3+ {[%clk 0:02:25]} 8. Bxf3 {[%clk
0:02:39.2]} 8... Ne7 {[%clk 0:02:25.9]} 9. Nc3 {[%clk 0:02:37]} 9... O-O {[%clk
0:02:26.3]} 10. Bf4 {[%clk 0:02:32.5]} 10... Nc6 {[%clk 0:02:20.7]} 11. Bg2
{[%clk 0:01:55.8]} 11... Be6 {[%clk 0:02:15.4]} 12. Nd5 {[%clk 0:01:54.1]} 12...
a5 {[%clk 0:01:40.9]} 13. Qd2 {[%clk 0:01:52.8]} 13... Re8 {[%clk 0:01:36.9]}
14. Rac1 {[%clk 0:01:42]} 14... Bxd5 {[%clk 0:00:39.9]} 15. cxd5 {[%clk
0:01:39.4]} 15... Nb4 {[%clk 0:00:30.8]} 16. a3 {[%clk 0:01:25]} 16... Na6
{[%clk 0:00:30.9]} 17. b4 {[%clk 0:01:01]} 17... axb4 {[%clk 0:00:29.5]} 18.
axb4 {[%clk 0:01:01.9]} 18... Nb8 {[%clk 0:00:27]} 19. Rc4 {[%clk 0:00:47.8]}
19... Nd7 {[%clk 0:00:21.7]} 20. Rfc1 {[%clk 0:00:47.8]} 20... Rc8 {[%clk
0:00:09.2]} 21. Qc2 {[%clk 0:00:38]} 21... Ne5 {[%clk 0:00:08.4]} 22. Rxc7
{[%clk 0:00:37.3]} 22... Rxc7 {[%clk 0:00:06.5]} 23. Qxc7 {[%clk 0:00:38.2]}
23... Qf6 {[%clk 0:00:04]} 24. Qxb7 {[%clk 0:00:38.2]} 24... Ng4 {[%clk
0:00:02.5]} 25. Rc8 {[%clk 0:00:36.6]} 1-0

[Event "*** SCC Grand Prix: Titled Tuesday Blitz"]
[Site "Chess.com"]
[Date "2020.08.11"]
[Round "8"]
[White "Shubinkirill2003"]
[Black "Jumbo"]
[Result "0-1"]
[WhiteElo "2667"]
[BlackElo "2871"]
[TimeControl "180+1"]
[EndTime "11:33:27 PDT"]
[Termination "Jumbo won by checkmate"]

1. e4 {[%clk 0:03:00.9]} 1... c5 {[%clk 0:02:54.6]} 2. Nf3 {[%clk 0:03:01]} 2...
d6 {[%clk 0:02:55]} 3. d4 {[%clk 0:03:00.8]} 3... cxd4 {[%clk 0:02:55.9]} 4.
Qxd4 {[%clk 0:03:01]} 4... Nf6 {[%clk 0:02:54]} 5. Bb5+ {[%clk 0:02:59.6]} 5...
Bd7 {[%clk 0:02:46]} 6. c4 {[%clk 0:02:59]} 6... Bxb5 {[%clk 0:02:39.1]} 7. cxb5
{[%clk 0:02:58.4]} 7... Nbd7 {[%clk 0:02:38.5]} 8. Nc3 {[%clk 0:02:57]} 8... g6
{[%clk 0:02:38.3]} 9. O-O {[%clk 0:02:49]} 9... Bg7 {[%clk 0:02:38]} 10. Be3
{[%clk 0:02:48.6]} 10... O-O {[%clk 0:02:34.4]} 11. Qd2 {[%clk 0:02:47]} 11...
Qb8 {[%clk 0:02:20.9]} 12. Rac1 {[%clk 0:02:38.2]} 12... Rc8 {[%clk 0:02:21.2]}
13. a4 {[%clk 0:02:12.3]} 13... Nc5 {[%clk 0:02:19.1]} 14. Bxc5 {[%clk
0:01:52.3]} 14... Rxc5 {[%clk 0:02:20]} 15. b4 {[%clk 0:01:26.8]} 15... Rc4
{[%clk 0:02:09.5]} 16. Nd5 {[%clk 0:01:26.1]} 16... Rxc1 {[%clk 0:02:04.9]} 17.
Rxc1 {[%clk 0:01:24.6]} 17... Qd8 {[%clk 0:01:57.1]} 18. Nxf6+ {[%clk
0:01:13.8]} 18... Bxf6 {[%clk 0:01:58]} 19. Qc2 {[%clk 0:01:09]} 19... a5 {[%clk
0:01:45.3]} 20. bxa6 {[%clk 0:01:01.8]} 20... bxa6 {[%clk 0:01:45.4]} 21. h4
{[%clk 0:00:56.3]} 21... Rb8 {[%clk 0:01:40.3]} 22. Qc4 {[%clk 0:00:53.9]} 22...
Qd7 {[%clk 0:01:34.5]} 23. Qxa6 {[%clk 0:00:41.4]} 23... Rxb4 {[%clk 0:01:33.4]}
24. Rc8+ {[%clk 0:00:35.2]} 24... Kg7 {[%clk 0:01:33.1]} 25. Qa8 {[%clk
0:00:33.2]} 25... Rb1+ {[%clk 0:01:26.5]} 26. Kh2 {[%clk 0:00:32.3]} 26... Qg4
{[%clk 0:01:09]} 27. Rg8+ {[%clk 0:00:30.8]} 27... Kh6 {[%clk 0:01:09.3]} 28.
Qf8+ {[%clk 0:00:30.1]} 28... Kh5 {[%clk 0:01:09.6]} 29. Qxf7 {[%clk 0:00:27.6]}
29... h6 {[%clk 0:00:46.3]} 30. Qd5+ {[%clk 0:00:15.9]} 30... Be5+ {[%clk
0:00:41.6]} 31. Nxe5 {[%clk 0:00:15.6]} 31... Qxh4# {[%clk 0:00:41.4]} 0-1

[Event "*** SCC Grand Prix: Titled Tuesday Blitz"]
[Site "Chess.com"]
[Date "2020.08.11"]
[Round "8"]
[White "vladislavkovalev"]
[Black "GukeshDommaraju"]
[Result "1-0"]
[WhiteElo "2888"]
[BlackElo "2673"]
[TimeControl "180+1"]
[EndTime "11:33:29 PDT"]
[Termination "vladislavkovalev won on time"]

1. e4 {[%clk 0:03:00.9]} 1... c5 {[%clk 0:02:59.1]} 2. Be2 {[%clk 0:03:01.1]}
2... Nc6 {[%clk 0:02:57.9]} 3. d3 {[%clk 0:03:02]} 3... e6 {[%clk 0:02:56.6]} 4.
f4 {[%clk 0:03:02.9]} 4... g6 {[%clk 0:02:55.5]} 5. Nf3 {[%clk 0:03:03.8]} 5...
Bg7 {[%clk 0:02:55.7]} 6. c3 {[%clk 0:03:04.7]} 6... d6 {[%clk 0:02:54.4]} 7.
O-O {[%clk 0:03:04.2]} 7... Nge7 {[%clk 0:02:54.6]} 8. Be3 {[%clk 0:03:04.9]}
8... O-O {[%clk 0:02:54.6]} 9. d4 {[%clk 0:03:05.5]} 9... cxd4 {[%clk
0:02:49.6]} 10. cxd4 {[%clk 0:03:06.4]} 10... f5 {[%clk 0:02:42.8]} 11. e5
{[%clk 0:02:50.3]} 11... Nd5 {[%clk 0:02:38.8]} 12. Bc1 {[%clk 0:02:46.7]} 12...
dxe5 {[%clk 0:02:30.8]} 13. dxe5 {[%clk 0:02:47.6]} 13... Qb6+ {[%clk
0:02:23.4]} 14. Kh1 {[%clk 0:02:47.7]} 14... Ne3 {[%clk 0:02:16.6]} 15. Bxe3
{[%clk 0:02:43.6]} 15... Qxe3 {[%clk 0:02:17.5]} 16. Qd2 {[%clk 0:02:43.6]}
16... Qxd2 {[%clk 0:01:57.3]} 17. Nbxd2 {[%clk 0:02:44.5]} 17... Bh6 {[%clk
0:01:54.8]} 18. g3 {[%clk 0:02:42.9]} 18... g5 {[%clk 0:01:54.9]} 19. fxg5
{[%clk 0:02:25.7]} 19... Bg7 {[%clk 0:01:54.9]} 20. Nc4 {[%clk 0:02:26.4]} 20...
b5 {[%clk 0:01:55.1]} 21. Nd6 {[%clk 0:02:25]} 21... Nxe5 {[%clk 0:01:55.3]} 22.
Rac1 {[%clk 0:02:10.1]} 22... Rd8 {[%clk 0:01:39.8]} 23. Rfd1 {[%clk 0:01:45.1]}
23... Ng4 {[%clk 0:01:36.4]} 24. Kg1 {[%clk 0:01:44.2]} 24... Bxb2 {[%clk
0:01:30.8]} 25. Rc7 {[%clk 0:01:38.4]} 25... Ne3 {[%clk 0:01:00.2]} 26. Rd2
{[%clk 0:01:36.1]} 26... Ba3 {[%clk 0:00:52.2]} 27. Nxf5 {[%clk 0:01:35.7]}
27... Rxd2 {[%clk 0:00:46.6]} 28. Nh6+ {[%clk 0:01:36.1]} 28... Kh8 {[%clk
0:00:40.9]} 29. Nxd2 {[%clk 0:01:37]} 29... Nf5 {[%clk 0:00:31.8]} 30. Bf3
{[%clk 0:01:33.8]} 30... Rb8 {[%clk 0:00:30.2]} 31. Ne4 {[%clk 0:01:30.1]} 31...
Bf8 {[%clk 0:00:19.5]} 32. Nf6 {[%clk 0:01:20.3]} 32... Ne7 {[%clk 0:00:18.4]}
33. Nhg8 {[%clk 0:01:07.8]} 33... Bb7 {[%clk 0:00:01.6]} 34. Bxb7 {[%clk
0:01:04.3]} 1-0

[Event "*** SCC Grand Prix: Titled Tuesday Blitz"]
[Site "Chess.com"]
[Date "2020.08.11"]
[Round "8"]
[White "AttilaTurzo"]
[Black "Chessalary"]
[Result "1-0"]
[WhiteElo "2448"]
[BlackElo "2284"]
[TimeControl "180+1"]
[EndTime "11:33:31 PDT"]
[Termination "AttilaTurzo won by resignation"]

1. e4 {[%clk 0:03:00.9]} 1... c5 {[%clk 0:03:00.1]} 2. Nf3 {[%clk 0:02:58.5]}
2... d6 {[%clk 0:02:59.4]} 3. d4 {[%clk 0:02:56.6]} 3... cxd4 {[%clk 0:03:00.3]}
4. Nxd4 {[%clk 0:02:57.3]} 4... Nf6 {[%clk 0:03:00.4]} 5. Nc3 {[%clk 0:02:57.7]}
5... a6 {[%clk 0:03:00.5]} 6. Bg5 {[%clk 0:02:57]} 6... e6 {[%clk 0:02:56.6]} 7.
f4 {[%clk 0:02:57.1]} 7... Nbd7 {[%clk 0:02:56.9]} 8. Qf3 {[%clk 0:02:56.6]}
8... Qc7 {[%clk 0:02:50.2]} 9. O-O-O {[%clk 0:02:56.2]} 9... b5 {[%clk
0:02:50.7]} 10. a3 {[%clk 0:02:46.6]} 10... Bb7 {[%clk 0:02:49]} 11. g4 {[%clk
0:02:46.3]} 11... Rc8 {[%clk 0:02:47.7]} 12. Bxf6 {[%clk 0:02:43.9]} 12... Nxf6
{[%clk 0:02:47.1]} 13. g5 {[%clk 0:02:43]} 13... Nd7 {[%clk 0:02:45.1]} 14. Kb1
{[%clk 0:02:37.9]} 14... Be7 {[%clk 0:02:39]} 15. h4 {[%clk 0:02:29.5]} 15...
Nc5 {[%clk 0:02:34.8]} 16. Rg1 {[%clk 0:02:11.3]} 16... O-O {[%clk 0:02:31.4]}
17. h5 {[%clk 0:02:09.6]} 17... a5 {[%clk 0:01:59.3]} 18. Bxb5 {[%clk
0:02:02.4]} 18... Qb6 {[%clk 0:01:49.3]} 19. a4 {[%clk 0:01:56.9]} 19... d5
{[%clk 0:01:29.9]} 20. exd5 {[%clk 0:01:49.4]} 20... exd5 {[%clk 0:01:30.8]} 21.
Nxd5 {[%clk 0:01:43.9]} 21... Bxd5 {[%clk 0:01:31.2]} 22. Qxd5 {[%clk
0:01:43.3]} 22... Rfd8 {[%clk 0:01:31.4]} 23. Qe5 {[%clk 0:01:32.3]} 23... Bd6
{[%clk 0:01:17.5]} 24. Qf5 {[%clk 0:01:23.3]} 24... g6 {[%clk 0:00:41.5]} 25.
hxg6 {[%clk 0:01:21.6]} 25... hxg6 {[%clk 0:00:42.4]} 26. Qh3 {[%clk 0:01:16.9]}
26... Bf8 {[%clk 0:00:25.6]} 27. f5 {[%clk 0:01:10.2]} 27... Nxa4 {[%clk
0:00:18.9]} 28. fxg6 {[%clk 0:00:52.3]} 28... fxg6 {[%clk 0:00:15.1]} 29. Bxa4
{[%clk 0:00:46]} 29... Rb8 {[%clk 0:00:04.3]} 30. Bb3+ {[%clk 0:00:44.9]} 1-0

[Event "*** SCC Grand Prix: Titled Tuesday Blitz"]
[Site "Chess.com"]
[Date "2020.08.11"]
[Round "8"]
[White "Caterpiller35"]
[Black "icychess54"]
[Result "1-0"]
[WhiteElo "2408"]
[BlackElo "2234"]
[TimeControl "180+1"]
[EndTime "11:33:31 PDT"]
[Termination "Caterpiller35 won by checkmate"]

1. e4 {[%clk 0:03:00.8]} 1... c5 {[%clk 0:03:00]} 2. Nc3 {[%clk 0:02:59.7]} 2...
Nc6 {[%clk 0:02:57.7]} 3. Bb5 {[%clk 0:02:58.7]} 3... Qc7 {[%clk 0:02:54.5]} 4.
Nf3 {[%clk 0:02:56.6]} 4... e6 {[%clk 0:02:53.9]} 5. O-O {[%clk 0:02:55.6]} 5...
Nf6 {[%clk 0:02:51.6]} 6. Qe2 {[%clk 0:02:49.6]} 6... Be7 {[%clk 0:02:50.1]} 7.
Bxc6 {[%clk 0:02:48.8]} 7... Qxc6 {[%clk 0:02:47.4]} 8. d4 {[%clk 0:02:49.7]}
8... cxd4 {[%clk 0:02:36.4]} 9. Nxd4 {[%clk 0:02:48.5]} 9... Qc5 {[%clk
0:02:23.7]} 10. Ndb5 {[%clk 0:02:35]} 10... O-O {[%clk 0:02:07.2]} 11. Be3
{[%clk 0:02:30.3]} 11... Qb4 {[%clk 0:01:43.5]} 12. a3 {[%clk 0:02:24.3]} 12...
Qa5 {[%clk 0:01:36.3]} 13. b4 {[%clk 0:02:19.7]} 13... Qa6 {[%clk 0:01:28.4]}
14. e5 {[%clk 0:02:14.5]} 14... Ne8 {[%clk 0:01:27]} 15. Bc5 {[%clk 0:01:47.4]}
15... Bxc5 {[%clk 0:01:22.9]} 16. bxc5 {[%clk 0:01:48.3]} 16... Qc6 {[%clk
0:01:19.1]} 17. Qe3 {[%clk 0:01:45.3]} 17... b6 {[%clk 0:01:01.5]} 18. cxb6
{[%clk 0:01:40.8]} 18... axb6 {[%clk 0:00:54.8]} 19. Rfd1 {[%clk 0:01:38.6]}
19... Ba6 {[%clk 0:00:48.3]} 20. a4 {[%clk 0:01:36.7]} 20... f6 {[%clk 0:00:34]}
21. Rd2 {[%clk 0:01:30.1]} 21... fxe5 {[%clk 0:00:31.9]} 22. Rad1 {[%clk
0:01:22.6]} 22... d6 {[%clk 0:00:25.5]} 23. Nxd6 {[%clk 0:01:16.4]} 23... Nxd6
{[%clk 0:00:12.2]} 24. Rxd6 {[%clk 0:01:15.5]} 24... Qc4 {[%clk 0:00:11.3]} 25.
Qxe5 {[%clk 0:01:11.9]} 25... Kh8 {[%clk 0:00:10]} 26. Rd7 {[%clk 0:00:46.5]}
26... Rac8 {[%clk 0:00:07.1]} 27. Qxg7# {[%clk 0:00:45.1]} 1-0